bitfinex/quotes_BTCUSD_20250920
["timestamp","ask_amount","ask_price","bid_price","bid_amount"]
[1758357439918,0.84877661,116040.0,116030.0,0.10623967]
[1758357450446,0.84877798,116040.0,116030.0,0.10623967]
[1758357455532,0.84877798,116040.0,116030.0,0.10426967]
[1758357455713,0.86990798,116040.0,116030.0,0.10426967]
[1758357457877,0.86998734,116040.0,116030.0,0.10426967]
[1758357458369,0.86998733,116040.0,116030.0,0.10426967]
[1758357460256,0.86393103,116040.0,116030.0,0.10426967]
[1758357462611,0.86998734,116040.0,116030.0,0.10426967]
[1758357473306,0.84885734,116040.0,116030.0,0.10426967]
[1758357484112,0.84885734,116040.0,116030.0,0.10634967]
[1758357484513,0.84885734,116040.0,116030.0,0.13347967]
[1758357498947,0.84885734,116040.0,116030.0,0.10634967]
[1758357501947,0.20616912,116040.0,116030.0,0.10634967]
[1758357502165,0.84885734,116040.0,116030.0,0.10634967]
[1758357502385,0.20616912,116040.0,116030.0,0.10634967]
[1758357502598,0.84885734,116040.0,116030.0,0.10634967]
[1758357502821,0.84885734,116040.0,116030.0,0.13347967]
[1758357505106,0.84885734,116040.0,116030.0,0.13357967]
[1758357511741,0.84885734,116040.0,116030.0,0.10644967]
[1758357512037,0.86998734,116040.0,116030.0,0.10644967]
[1758357512919,0.84885734,116040.0,116030.0,0.10644967]
[1758357519863,0.52747118,116040.0,116030.0,0.10644967]
[1758357520951,0.55300934,116040.0,116030.0,0.10644967]
[1758357521357,0.23170728,116040.0,116030.0,0.10644967]
[1758357521560,0.55300934,116040.0,116030.0,0.10644967]
[1758357521762,0.23170728,116040.0,116030.0,0.10644967]
[1758357521969,0.55300934,116040.0,116030.0,0.10952967]
[1758357522171,0.55300934,116040.0,116030.0,0.13229967]
[1758357527284,0.52747118,116040.0,116030.0,0.13229967]
[1758357527679,0.52562118,116040.0,116030.0,0.13229967]
[1758357529811,0.51956487,116040.0,116030.0,0.13229967]
[1758357529959,0.52562106,116040.0,116030.0,0.13229967]
[1758357542539,0.52562106,116040.0,116030.0,0.13223967]
[1758357544628,0.204319,116040.0,116030.0,0.13223967]
[1758357544832,0.52562106,116040.0,116030.0,0.13223967]
[1758357545207,0.52562106,116040.0,116030.0,0.10946967]
[1758357545951,0.52562106,116040.0,116030.0,0.10436967]
[1758357546381,0.54675106,116040.0,116030.0,0.10436967]
[1758357548172,0.52562106,116040.0,116030.0,0.10436967]
[1758357553360,0.204319,116040.0,116030.0,0.10436967]
[1758357553619,0.52562106,116040.0,116030.0,0.10436967]
[1758357560474,0.52562106,116040.0,116030.0,0.12861967]
[1758357564288,0.03196464,116040.0,116030.0,0.44992173]
[1758357564514,0.18094088,116060.0,116040.0,0.17234145]
[1758357564712,0.17838242,116060.0,116050.0,0.29909312]
[1758357564852,0.17838242,116060.0,116050.0,0.28185917]
[1758357564853,0.03196165,116060.0,116050.0,0.28185917]
[1758357565049,0.02590388,116060.0,116050.0,0.28185917]
[1758357565449,0.02590388,116060.0,116050.0,0.60316123]
[1758357565969,0.02590388,116060.0,116050.0,0.62906212]
[1758357566398,0.1809097,116080.0,116060.0,0.1723112]
[1758357566599,0.1809097,116080.0,116070.0,0.10937967]
[1758357567179,0.2068103,116080.0,116070.0,0.10937967]
[1758357568247,0.52811236,116080.0,116070.0,0.08526967]
[1758357568471,0.54924236,116080.0,116070.0,0.08526967]
[1758357569223,0.54924236,116080.0,116070.0,0.08826967]
[1758357570647,0.54924236,116080.0,116070.0,0.09936967]
[1758357575370,0.55526762,116080.0,116070.0,0.09936967]
[1758357576222,0.53413762,116080.0,116070.0,0.09936967]
[1758357576421,0.55526762,116080.0,116070.0,0.09936967]
[1758357577062,0.55526762,116080.0,116070.0,0.09926967]
[1758357579853,0.87619886,116080.0,116070.0,0.09926967]
[1758357581064,0.85506886,116080.0,116070.0,0.09926967]
[1758357581325,0.21283556,116080.0,116070.0,0.09926967]
[1758357581525,0.85506886,116080.0,116070.0,0.09926967]
[1758357585054,0.85506886,116080.0,116070.0,0.0990099]
[1758357588406,0.86311247,116080.0,116070.0,0.0990099]
[1758357588849,0.88424247,116080.0,116070.0,0.0990099]
[1758357593021,0.86311247,116080.0,116070.0,0.0990099]
[1758357598035,0.88424247,116080.0,116070.0,0.0990099]
[1758357598870,0.22087917,116080.0,116070.0,0.0990099]
[1758357599062,0.54199582,116080.0,116070.0,0.1219899]
[1758357599520,0.51609522,116080.0,116070.0,0.1219899]
[1758357599902,0.83721187,116080.0,116070.0,0.1219899]
[1758357605169,0.83724199,116080.0,116070.0,0.1219899]
[1758357606004,0.83724199,116080.0,116070.0,0.1270899]
[1758357608771,0.51612534,116080.0,116070.0,0.1270899]
[1758357609408,0.50808173,116080.0,116070.0,0.1270899]
[1758357616533,0.82919838,116080.0,116070.0,0.1270899]
[1758357617113,0.50808173,116080.0,116070.0,0.1270899]
[1758357617525,0.18696508,116080.0,116070.0,0.1270899]
[1758357617695,0.50808173,116080.0,116070.0,0.1270899]
[1758357620750,0.50808246,116080.0,116070.0,0.1270899]
[1758357631404,0.18696581,116080.0,116070.0,0.31789069]
[1758357631598,0.50808246,116080.0,116070.0,0.1283499]
[1758357632630,0.50808353,116080.0,116070.0,0.1283499]
[1758357632835,0.50808353,116080.0,116070.0,0.30065971]
[1758357635145,0.50808353,116080.0,116070.0,0.1283499]
[1758357636532,0.50808353,116080.0,116070.0,0.14558088]
[1758357638178,0.50808353,116080.0,116070.0,0.1283499]
[1758357640884,0.50993353,116080.0,116070.0,0.1283499]
[1758357641288,0.50993353,116080.0,116070.0,0.1011799]
[1758357641439,0.53106353,116080.0,116070.0,0.1011799]
[1758357641859,0.53100279,116080.0,116070.0,0.1011799]
[1758357642691,0.50987279,116080.0,116070.0,0.1011799]
[1758357643089,0.53100279,116080.0,116070.0,0.0990099]
[1758357651002,0.55690262,116080.0,116070.0,0.0990099]
[1758357661004,0.53577262,116080.0,116070.0,0.0990099]
[1758357661211,0.55690262,116080.0,116070.0,0.0990099]
[1758357662672,0.23584671,116080.0,116070.0,0.0990099]
[1758357662901,0.55690262,116080.0,116070.0,0.0990099]
[1758357664037,0.53577262,116080.0,116070.0,0.1011599]
[1758357668945,0.53577262,116080.0,116070.0,0.0990099]
[1758357669241,0.55690262,116080.0,116070.0,0.0990099]
[1758357673449,0.53577262,116080.0,116070.0,0.0990099]
[1758357674317,0.53577262,116080.0,116070.0,0.1011599]
[1758357674947,0.53577438,116080.0,116070.0,0.1011599]
[1758357681102,0.23584847,116080.0,116070.0,0.0990099]
[1758357681345,0.58360254,116080.0,116070.0,0.0990099]
[1758357682498,0.26254663,116080.0,116070.0,0.0990099]
[1758357682698,0.58360254,116080.0,116070.0,0.0990099]
[1758357687633,0.58244254,116080.0,116070.0,0.0990099]
[1758357688792,0.55690438,116080.0,116070.0,0.0990099]
[1758357692936,0.23584847,116080.0,116070.0,0.0990099]
[1758357693131,0.55690438,116080.0,116070.0,0.0990099]
[1758357693457,0.23584847,116080.0,116070.0,0.0990099]
[1758357693672,0.53577438,116080.0,116070.0,0.1010399]
[1758357694334,0.53577438,116080.0,116070.0,0.1283199]
[1758357694512,0.53392438,116080.0,116070.0,0.1283199]
[1758357696133,0.53577438,116080.0,116070.0,0.1283199]
[1758357696764,0.53577438,116080.0,116070.0,0.1010399]
[1758357698781,0.53576843,116080.0,116070.0,0.1010399]
[1758357703842,0.8569315,116080.0,116070.0,0.1010399]
[1758357706557,0.85693236,116080.0,116070.0,0.1010399]
[1758357710809,0.85693236,116080.0,116070.0,0.1283199]
[1758357715888,0.85693236,116080.0,116070.0,0.1250899]
[1758357716028,0.85693236,116080.0,116070.0,0.1010399]
[1758357721107,0.85693236,116080.0,116070.0,0.0990099]
[1758357721315,0.87806236,116080.0,116070.0,0.0990099]
[1758357722968,0.85693236,116080.0,116070.0,0.0990099]
[1758357723587,0.85693236,116080.0,116070.0,0.1011599]
[1758357723977,0.85693497,116080.0,116070.0,0.1011599]
[1758357732908,0.856936,116080.0,116070.0,0.1011599]
[1758357744662,0.85693587,116080.0,116070.0,0.1011599]
[1758357752496,0.85693596,116080.0,116070.0,0.1011599]
[1758357760586,0.85693574,116080.0,116070.0,0.1011599]
[1758357765896,0.53582217,116080.0,116070.0,0.1011599]
[1758357768366,0.53582212,116080.0,116070.0,0.1011599]
[1758357781019,0.55695212,116080.0,116070.0,0.0990099]
[1758357781224,0.58249028,116080.0,116070.0,0.0990099]
[1758357781627,0.58365028,116080.0,116070.0,0.0990099]
[1758357782034,0.58249028,116080.0,116070.0,0.0990099]
[1758357782644,0.92249028,116080.0,116070.0,0.0990099]
[1758357782865,0.92365028,116080.0,116070.0,0.0990099]
[1758357784072,0.92249028,116080.0,116070.0,0.0990099]
[1758357788425,0.90136028,116080.0,116070.0,0.0990099]
[1758357788625,0.92249028,116080.0,116070.0,0.0990099]
[1758357791092,0.97249028,116080.0,116070.0,0.0990099]
[1758357791722,0.95136028,116080.0,116070.0,0.0990099]
[1758357791957,0.97249028,116080.0,116070.0,0.0990099]
[1758357796843,0.94695212,116080.0,116070.0,0.0990099]
[1758357800200,0.62584671,116080.0,116070.0,0.0990099]
[1758357800438,0.94695212,116080.0,116070.0,0.0990099]
[1758357802162,0.94695212,116080.0,116070.0,0.0968639]
[1758357807155,0.96309134,116080.0,116070.0,0.0968639]
[1758357812686,0.94695212,116080.0,116070.0,0.0968639]
[1758357820118,0.92582212,116080.0,116070.0,0.0968639]
[1758357820679,0.94695212,116080.0,116070.0,0.0968639]
[1758357821769,0.92582212,116080.0,116070.0,0.0968639]
[1758357823980,0.92582212,116080.0,116070.0,0.0989539]
[1758357825397,0.92582212,116080.0,116070.0,0.1214839]
[1758357825606,0.95136028,116080.0,116070.0,0.1214839]
[1758357825805,0.95136028,116080.0,116070.0,0.1246639]
[1758357827795,1.27250485,116080.0,116070.0,0.1246639]
[1758357828008,1.24511669,116080.0,116070.0,0.1246639]
[1758357830224,1.24511604,116080.0,116070.0,0.1246639]
[1758357834364,1.24511551,116080.0,116070.0,0.1246639]
[1758357836047,0.60286553,116080.0,116070.0,0.1246639]
[1758357836249,1.24511551,116080.0,116070.0,0.1246639]
[1758357836661,0.26286553,116080.0,116070.0,0.1269339]
[1758357837208,0.58399052,116080.0,116070.0,0.1269339]
[1758357837414,0.53399052,116080.0,116070.0,0.1269339]
[1758357844701,0.52793452,116080.0,116070.0,0.29924371]
[1758357844909,0.53398515,116080.0,116070.0,0.29924371]
[1758357845139,0.53398515,116080.0,116070.0,0.1269339]
[1758357846281,0.53398515,116080.0,116070.0,0.29924371]
[1758357846491,0.21286016,116080.0,116070.0,0.6203687]
[1758357847797,0.21286016,116080.0,116070.0,0.29924371]
[1758357848019,0.21286016,116080.0,116070.0,0.6203687]
[1758357877003,0.53398515,116080.0,116070.0,0.29924371]
[1758357879070,0.21286016,116080.0,116070.0,0.29924371]
[1758357879489,0.53398515,116080.0,116070.0,0.29924371]
[1758357887864,0.21286016,116080.0,116070.0,0.29924371]
[1758357888112,0.53398515,116080.0,116070.0,0.29924371]
[1758357889723,0.53390663,116080.0,116070.0,0.29924371]
[1758357889933,0.20424542,116080.0,116070.0,0.29924371]
[1758357890139,0.52529189,116080.0,116070.0,0.29924371]
[1758357899529,0.52529605,116080.0,116070.0,0.29924371]
[1758357900813,0.52529605,116080.0,116070.0,0.1269339]
[1758357901461,0.52529605,116080.0,116070.0,0.29924371]
[1758357903560,0.20424958,116080.0,116070.0,0.29924371]
[1758357903765,0.52529605,116080.0,116070.0,0.29924371]
[1758357914691,0.20424958,116080.0,116070.0,0.29924371]
[1758357914895,0.52529605,116080.0,116070.0,0.29924371]
[1758357915722,0.52714605,116080.0,116070.0,0.27126371]
[1758357915938,0.54827605,116080.0,116070.0,0.0968639]
[1758357916585,0.52714605,116080.0,116070.0,0.27131371]
[1758357919648,0.52529605,116080.0,116070.0,0.29916371]
[1758357924578,0.20424958,116080.0,116070.0,0.29916371]
[1758357924740,0.52529605,116080.0,116070.0,0.29916371]
[1758357926574,0.52530176,116080.0,116070.0,0.29916371]
[1758357930489,0.5253024,116080.0,116070.0,0.29916371]
[1758357937207,0.5271524,116080.0,116070.0,0.27433371]
[1758357937645,0.5271524,116080.0,116070.0,0.29743371]
[1758357939679,0.5271524,116080.0,116070.0,0.1251239]
[1758357945224,0.5271524,116080.0,116070.0,0.1020239]
[1758357946124,0.5271524,116080.0,116070.0,0.0990039]
[1758357950547,0.5271524,116080.0,116070.0,0.27131371]
[1758357951764,0.5271524,116080.0,116070.0,0.0990039]
[1758357951977,0.5271549,116080.0,116070.0,0.0990039]
[1758357952254,0.5271549,116080.0,116070.0,0.27131371]
[1758357952653,0.5271549,116080.0,116070.0,0.0990039]
[1758357953249,0.5271549,116080.0,116070.0,0.1221039]
[1758357956929,0.5271549,116080.0,116070.0,0.0990039]
[1758357958325,0.5271549,116080.0,116070.0,0.0968639]
[1758357958538,0.86933387,116080.0,116070.0,0.0968639]
[1758357960672,0.84820387,116080.0,116070.0,0.0968639]
[1758357960908,0.86933387,116080.0,116070.0,0.0968639]
[1758357969480,0.86933387,116080.0,116070.0,0.0988739]
[1758357978455,0.5482849,116080.0,116070.0,0.0988739]
[1758357982030,0.5271549,116080.0,116070.0,0.0988739]
[1758357984430,0.52715173,116080.0,116070.0,0.0988739]
[1758357986663,0.54828173,116080.0,116070.0,0.0988739]
[1758357986878,0.54828173,116080.0,116070.0,0.0968639]
[1758358001296,0.22723276,116080.0,116070.0,0.0988339]
[1758358001501,0.54828173,116080.0,116070.0,0.0988339]
[1758358005157,0.54828173,116080.0,116070.0,0.0968639]
[1758358008157,0.54828439,116080.0,116070.0,0.0968639]
[1758358011886,0.22723542,116080.0,116070.0,0.0968639]
[1758358012724,0.22839542,116080.0,116070.0,0.0968639]
[1758358012925,0.22723542,116080.0,116070.0,0.0968639]
[1758358013451,0.20610542,116080.0,116070.0,0.0968639]
[1758358015747,0.22723542,116080.0,116070.0,0.0968639]
[1758358017234,0.20610542,116080.0,116070.0,0.0989539]
[1758358020893,0.20610542,116080.0,116070.0,0.1220939]
[1758358022553,0.20610542,116080.0,116070.0,0.1252339]
[1758358022699,0.20610277,116080.0,116070.0,0.1252339]
[1758358023763,0.20610277,116080.0,116070.0,0.0989539]
[1758358024193,0.22723277,116080.0,116070.0,0.0989539]
[1758358026746,0.20610277,116080.0,116070.0,0.0989539]
[1758358027555,0.20610277,116080.0,116070.0,0.1269539]
[1758358028684,0.20610277,116080.0,116070.0,0.1020939]
[1758358029022,0.20610277,116080.0,116070.0,0.0989539]
[1758358029264,0.20610277,116080.0,116070.0,0.0968639]
[1758358029265,0.5494501,116080.0,116070.0,0.0968639]
[1758358029470,0.8894501,116080.0,116070.0,0.0968639]
[1758358036385,0.8882901,116080.0,116070.0,0.0968639]
[1758358049560,0.8894501,116080.0,116070.0,0.0968639]
[1758358049766,0.91575356,116080.0,116070.0,0.0968639]
[1758358050412,0.91575356,116080.0,116070.0,0.0938639]
[1758358050816,0.91575356,116080.0,116070.0,0.0968639]
[1758358051045,0.91375614,116080.0,116070.0,0.0968639]
[1758358051574,0.91375614,116080.0,116070.0,0.0858639]
[1758358051777,0.91375614,116080.0,116070.0,0.0938639]
[1758358053304,0.91259614,116080.0,116070.0,0.0938639]
[1758358054264,0.92872322,116080.0,116070.0,0.0938639]
[1758358054454,0.9125884,116080.0,116070.0,0.0938639]
[1758358054677,0.92872225,116080.0,116070.0,0.0938639]
[1758358054885,0.93794913,116080.0,116070.0,0.0938639]
[1758358055100,0.92988225,116080.0,116070.0,0.0938639]
[1758358058277,0.93794956,116080.0,116070.0,0.0938639]
[1758358058496,0.93678956,116080.0,116070.0,0.0938639]
[1758358061489,0.9104861,116080.0,116070.0,0.0938639]
[1758358062245,0.90241879,116080.0,116070.0,0.0938639]
[1758358062807,0.88628494,116080.0,116070.0,0.0938639]
[1758358065680,0.93794754,116080.0,116070.0,0.011]
[1758358066540,0.93794754,116080.0,116070.0,0.003]
[1758358066823,0.17232465,116060.0,116050.0,0.02791]
[1758358067053,0.17232465,116060.0,116050.0,0.11317967]
[1758358067054,0.49943222,116060.0,116050.0,0.11317967]
[1758358067261,0.49943222,116060.0,116050.0,0.11528967]
[1758358067705,0.52533794,116060.0,116050.0,0.11528967]
[1758358068891,0.52533794,116060.0,116050.0,0.12628967]
[1758358069103,0.52533794,116060.0,116050.0,0.13128967]
[1758358070028,0.20428061,116060.0,116050.0,0.13128967]
[1758358072001,0.52544999,116060.0,116050.0,0.13128967]
[1758358073562,0.20428061,116060.0,116050.0,0.13128967]
[1758358074002,0.52544892,116060.0,116050.0,0.13128967]
[1758358075942,0.20427954,116060.0,116050.0,0.13128967]
[1758358076143,0.52544892,116060.0,116050.0,0.13128967]
[1758358082289,0.20427954,116060.0,116050.0,0.13128967]
[1758358082502,0.52544892,116060.0,116050.0,0.13128967]
[1758358082873,0.20427954,116060.0,116050.0,0.13128967]
[1758358083454,0.20427954,116060.0,116050.0,0.45104905]
[1758358085264,0.19823037,116060.0,116050.0,0.45104905]
[1758358086693,0.20428398,116060.0,116050.0,0.45104905]
[1758358098687,0.20428398,116060.0,116050.0,0.12987967]
[1758358098906,0.20428398,116060.0,116050.0,0.45104905]
[1758358111093,0.20428398,116060.0,116050.0,0.12987967]
[1758358111333,0.20428398,116060.0,116050.0,0.45104905]
[1758358113850,0.20428398,116060.0,116050.0,0.12987967]
[1758358123285,0.52545336,116060.0,116050.0,0.10664967]
[1758358124060,0.52545336,116060.0,116050.0,0.13120967]
[1758358125817,0.52545336,116060.0,116050.0,0.10664967]
[1758358126051,0.54843336,116060.0,116050.0,0.10136967]
[1758358126234,0.52730336,116060.0,116050.0,0.10136967]
[1758358126449,0.54959336,116060.0,116050.0,0.10136967]
[1758358126888,0.54843336,116060.0,116050.0,0.10136967]
[1758358129586,0.54959336,116060.0,116050.0,0.10136967]
[1758358130018,0.54843336,116060.0,116050.0,0.10136967]
[1758358130961,0.52730336,116060.0,116050.0,0.10349967]
[1758358131173,0.52730336,116060.0,116050.0,0.13114967]
[1758358133127,0.52730827,116060.0,116050.0,0.13114967]
[1758358133912,0.20613889,116060.0,116050.0,0.13114967]
[1758358136502,0.20428889,116060.0,116050.0,0.13114967]
[1758358142314,0.20428889,116060.0,116050.0,0.10658967]
[1758358142535,0.20613889,116060.0,116050.0,0.10658967]
[1758358142969,0.20428889,116060.0,116050.0,0.13030967]
[1758358147776,0.20428889,116060.0,116050.0,0.10851694]
[1758358148661,0.20438889,116060.0,116050.0,0.10851694]
[1758358149355,0.20623889,116060.0,116050.0,0.08170694]
[1758358149746,0.20623889,116060.0,116050.0,0.08180694]
[1758358152052,0.20623889,116060.0,116050.0,0.07967694]
[1758358152669,0.20623889,116060.0,116050.0,0.08166694]
[1758358153572,0.20623889,116060.0,116050.0,0.07967694]
[1758358155413,0.20623889,116060.0,116050.0,0.08166694]
[1758358156850,0.20623889,116060.0,116050.0,0.07967694]
[1758358157425,0.22736889,116060.0,116050.0,0.07967694]
[1758358158573,0.22736912,116060.0,116050.0,0.07967694]
[1758358160283,0.20623912,116060.0,116050.0,0.07967694]
[1758358160962,0.20623912,116060.0,116050.0,0.08166694]
[1758358161494,0.20623912,116060.0,116050.0,0.07967694]
[1758358161696,0.22736912,116060.0,116050.0,0.07967694]
[1758358162143,0.20623912,116060.0,116050.0,0.07967694]
[1758358162342,0.20623912,116060.0,116050.0,0.08166694]
[1758358162813,0.20623912,116060.0,116050.0,0.10538694]
[1758358163400,0.20623912,116060.0,116050.0,0.08166694]
[1758358163904,0.20623912,116060.0,116050.0,0.07967694]
[1758358164295,0.20623912,116060.0,116050.0,0.08166694]
[1758358164480,0.20623912,116060.0,116050.0,0.08490694]
[1758358165587,0.20623912,116060.0,116050.0,0.10862694]
[1758358165783,0.20438912,116060.0,116050.0,0.10862694]
[1758358167498,0.20439003,116060.0,116050.0,0.10862694]
[1758358173749,0.20624003,116060.0,116050.0,0.07967694]
[1758358173955,0.22737003,116060.0,116050.0,0.07967694]
[1758358174150,0.20624003,116060.0,116050.0,0.07967694]
[1758358175182,0.20624003,116060.0,116050.0,0.10429694]
[1758358175603,0.20624003,116060.0,116050.0,0.10722694]
[1758358176043,0.20439003,116060.0,116050.0,0.10722694]
[1758358183305,0.20439067,116060.0,116050.0,0.10722694]
[1758358193707,0.20439156,116060.0,116050.0,0.10722694]
[1758358195151,0.20439168,116060.0,116050.0,0.10722694]
[1758358195820,0.52555812,116060.0,116050.0,0.10722694]
[1758358196035,0.20439168,116060.0,116050.0,0.10722694]
[1758358196217,0.52555812,116060.0,116050.0,0.10722694]
[1758358198019,0.52740812,116060.0,116050.0,0.10722694]
[1758358203819,0.52555812,116060.0,116050.0,0.10722694]
[1758358238248,0.52740812,116060.0,116050.0,0.10722694]
[1758358250133,0.52740812,116060.0,116050.0,0.08168694]
[1758358254764,0.52740812,116060.0,116050.0,0.08168694]
[1758358255099,0.20624168,116060.0,116050.0,0.08168694]
[1758358255368,0.52740812,116060.0,116050.0,0.08482694]
[1758358255803,0.20624168,116060.0,116050.0,0.08482694]
[1758358257038,0.20624176,116060.0,116050.0,0.08482694]
[1758358258388,0.20624176,116060.0,116050.0,0.10825694]
[1758358260374,0.20624176,116060.0,116050.0,0.08482694]
[1758358261169,0.20624176,116060.0,116050.0,0.08168694]
[1758358262950,0.52739951,116060.0,116050.0,0.07967694]
[1758358263157,0.88968951,116060.0,116050.0,0.07967694]
[1758358263779,0.88968951,116060.0,116050.0,0.07957694]
[1758358264974,0.88852951,116060.0,116050.0,0.07957694]
[1758358271561,0.8885248,116060.0,116050.0,0.07957694]
[1758358272044,0.95790053,116060.0,116040.0,0.00018074]
[1758358272238,0.95790053,116060.0,116040.0,8.074e-05]
[1758358272239,0.836945,116050.0,116040.0,8.074e-05]
[1758358272495,1.21747323,116050.0,116040.0,8.074e-05]
[1758358272725,0.91430155,116050.0,116040.0,8.074e-05]
[1758358272925,0.91775661,116050.0,116040.0,8.074e-05]
[1758358273246,1.23891436,116050.0,116040.0,8.074e-05]
[1758358274421,1.34756532,116050.0,116040.0,0.00208074]
[1758358274643,1.34756532,116050.0,116040.0,1e-08]
[1758358275052,1.34956532,116050.0,116040.0,1e-08]
[1758358275518,0.17236921,116030.0,116020.0,0.0024]
[1758358275700,0.49958364,116030.0,116020.0,0.08779105]
[1758358275938,0.5488671,116030.0,116020.0,0.08779105]
[1758358276360,0.5759415,116030.0,116020.0,0.00252138]
[1758358276590,0.5760415,116030.0,116020.0,0.00252138]
[1758358276848,0.5760415,116030.0,116020.0,0.00352138]
[1758358277900,0.5760415,116030.0,116020.0,0.00652138]
[1758358278349,0.58460854,116030.0,116020.0,0.00652138]
[1758358278551,0.58460854,116030.0,116020.0,0.00252138]
[1758358278755,0.58460854,116030.0,116020.0,0.00352138]
[1758358279183,1.03130854,116030.0,116020.0,0.00352138]
[1758358281609,1.04735406,116030.0,116020.0,0.00352138]
[1758358282275,1.13262373,116030.0,116020.0,0.00352138]
[1758358282493,0.51238407,116020.0,116010.0,0.0004]
[1758358282717,0.56078973,116020.0,116010.0,0.00044682]
[1758358282948,0.88389748,116020.0,116010.0,0.00044682]
[1758358283216,0.90618748,116020.0,116010.0,0.00044682]
[1758358283784,0.93210683,116020.0,116010.0,0.00044682]
[1758358284838,0.93210683,116020.0,116010.0,0.00144682]
[1758358285044,0.93210683,116020.0,116010.0,0.00344682]
[1758358285264,0.93094683,116020.0,116010.0,0.00344682]
[1758358285742,0.60978908,116020.0,116010.0,0.00344682]
[1758358285919,0.93094683,116020.0,116010.0,0.00344682]
[1758358286142,0.93210683,116020.0,116010.0,0.00344682]
[1758358286353,0.90796683,116020.0,116010.0,0.03157682]
[1758358287320,0.90981683,116020.0,116010.0,0.03157682]
[1758358287559,0.90981683,116020.0,116010.0,0.00550682]
[1758358288888,0.93094683,116020.0,116010.0,0.00550682]
[1758358290237,0.93094683,116020.0,116010.0,0.00344682]
[1758358291397,0.93897446,116020.0,116010.0,0.00344682]
[1758358293987,0.91784446,116020.0,116010.0,0.00344682]
[1758358294513,0.91784446,116020.0,116010.0,0.00550682]
[1758358294945,0.9118094,116020.0,116010.0,0.00550682]
[1758358295164,0.91783309,116020.0,116010.0,0.00550682]
[1758358295615,0.91783309,116020.0,116010.0,0.00344682]
[1758358295831,0.93896309,116020.0,116010.0,0.00344682]
[1758358296305,0.17239893,116010.0,116000.0,0.02747]
[1758358296525,0.17239893,116010.0,116000.0,0.11273967]
[1758358296526,0.22083613,116010.0,116000.0,0.11273967]
[1758358296739,0.22083613,116010.0,116000.0,0.11479967]
[1758358297434,0.22093613,116010.0,116000.0,0.11479967]
[1758358297575,0.24685548,116010.0,116000.0,0.11779967]
[1758358297795,0.56801323,116010.0,116000.0,0.11779967]
[1758358298385,0.57605415,116010.0,116000.0,0.11779967]
[1758358298804,0.57605415,116010.0,116000.0,0.12179967]
[1758358302320,0.57605415,116010.0,116000.0,0.10966083]
[1758358302726,0.57607222,116010.0,116000.0,0.10966083]
[1758358302921,0.56000904,116010.0,116000.0,0.10966083]
[1758358306600,0.56185904,116010.0,116000.0,0.09226967]
[1758358306811,0.56000904,116010.0,116000.0,0.09730967]
[1758358307238,0.56000904,116010.0,116000.0,0.12039967]
[1758358308452,0.56000904,116010.0,116000.0,0.11230738]
[1758358312206,0.57615801,116010.0,116000.0,0.11230738]
[1758358312892,0.56000904,116010.0,116000.0,0.11230738]
[1758358314123,0.23885129,116010.0,116000.0,0.41037513]
[1758358314354,0.0401489,116010.0,116000.0,0.60587892]
[1758358314847,0.03208991,116010.0,116000.0,0.60587892]
[1758358315047,0.03208991,116010.0,116000.0,0.60597892]
[1758358315919,0.03208991,116010.0,116000.0,0.92747583]
[1758358319410,0.20448884,116010.0,116000.0,0.92747583]
[1758358319827,0.20448884,116010.0,116000.0,0.6061485]
[1758358320030,0.03208991,116010.0,116000.0,0.6061485]
[1758358320182,0.20448884,116010.0,116000.0,0.6061485]
[1758358320790,0.20448884,116010.0,116000.0,0.92747583]
[1758358321250,0.03208991,116010.0,116000.0,0.92747583]
[1758358321902,0.00617056,116010.0,116000.0,0.92747583]
[1758358323268,0.00014687,116010.0,116000.0,0.92747583]
[1758358323482,0.00199687,116010.0,116000.0,0.08931738]
[1758358323719,0.20447033,116010.0,116000.0,0.08427738]
[1758358323924,0.50176766,116010.0,116000.0,0.08624738]
[1758358324130,0.50176766,116010.0,116000.0,0.11230738]
[1758358324640,0.52579766,116010.0,116000.0,0.08624738]
[1758358326048,0.52579766,116010.0,116000.0,0.08427738]
[1758358328391,0.51975313,116010.0,116000.0,0.08427738]
[1758358329765,0.1984258,116010.0,116000.0,0.08427738]
[1758358329968,0.51975313,116010.0,116000.0,0.08427738]
[1758358332988,0.51975313,116010.0,116000.0,0.08624738]
[1758358341577,0.49572313,116010.0,116000.0,0.08624738]
[1758358344853,0.51975313,116010.0,116000.0,0.08624738]
[1758358346124,0.1984258,116010.0,116000.0,0.08624738]
[1758358347745,0.51975313,116010.0,116000.0,0.08624738]
[1758358348414,0.1984258,116010.0,116000.0,0.08624738]
[1758358349232,0.1743958,116010.0,116000.0,0.08932738]
[1758358350718,0.49572313,116010.0,116000.0,0.08932738]
[1758358351667,0.50177907,116010.0,116000.0,0.08932738]
[1758358352402,0.52430907,116010.0,116000.0,0.08624738]
[1758358352901,0.52430907,116010.0,116000.0,0.08427738]
[1758358356954,0.52431279,116010.0,116000.0,0.08427738]
[1758358360280,0.52431279,116010.0,116000.0,0.08417738]
[1758358360523,0.52547279,116010.0,116000.0,0.08417738]
[1758358360743,0.52431279,116010.0,116000.0,0.08417738]
[1758358360957,0.86431279,116010.0,116000.0,0.08417738]
[1758358364383,0.86547279,116010.0,116000.0,0.08417738]
[1758358365032,0.54298546,116010.0,116000.0,0.08417738]
[1758358365268,0.86431279,116010.0,116000.0,0.08417738]
[1758358366720,0.54298546,116010.0,116000.0,0.08417738]
[1758358366930,0.86431279,116010.0,116000.0,0.08417738]
[1758358368796,0.86431332,116010.0,116000.0,0.08417738]
[1758358369690,0.86547332,116010.0,116000.0,0.08417738]
[1758358370097,0.86431332,116010.0,116000.0,0.08417738]
[1758358377954,0.86444915,116010.0,116000.0,0.08417738]
[1758358381933,0.86444915,116010.0,116000.0,0.08615738]
[1758358382446,0.86783847,116010.0,116000.0,0.11238738]
[1758358382650,0.86783847,116010.0,116000.0,0.08939738]
[1758358382854,0.89103847,116010.0,116000.0,0.08939738]
[1758358389369,0.89103847,116010.0,116000.0,0.08615738]
[1758358389862,0.89103847,116010.0,116000.0,0.08417738]
[1758358401360,0.86783847,116010.0,116000.0,0.08417738]
[1758358401567,0.89219847,116010.0,116000.0,0.08417738]
[1758358402344,1.24865206,116010.0,116000.0,0.08417738]
[1758358402550,0.9271889,116010.0,116000.0,0.08417738]
[1758358403404,1.24865206,116010.0,116000.0,0.08417738]
[1758358403822,0.9271889,116010.0,116000.0,0.08417738]
[1758358404461,0.9260289,116010.0,116000.0,0.08417738]
[1758358412836,1.24749206,116010.0,116000.0,0.08417738]
[1758358413055,0.9260289,116010.0,116000.0,0.08417738]
[1758358413454,1.24749206,116010.0,116000.0,0.08417738]
[1758358414625,0.60456574,116010.0,116000.0,0.08417738]
[1758358414840,1.24749206,116010.0,116000.0,0.08417738]
[1758358418067,1.24749206,116010.0,116000.0,0.007]
[1758358418068,1.31072173,116010.0,116000.0,0.007]
[1758358418274,1.25000206,116010.0,116000.0,0.007]
[1758358421642,1.69670206,116010.0,116000.0,0.007]
[1758358424798,1.69554206,116010.0,116000.0,0.007]
[1758358427638,1.05261574,116010.0,116000.0,0.007]
[1758358427845,1.69554206,116010.0,116000.0,0.007]
[1758358434162,1.05261574,116010.0,116000.0,0.007]
[1758358434359,1.69554206,116010.0,116000.0,0.007]